Workbook

Sheet Analysis
I2: Key Observations
I3: ="* "&"Overall "&INDEX($A$11:$A$20,MAX(IF($B$11:$C$20=MAX($B$11:$C$20),ROW($A$11:$A$20)-ROW($A$11)+1)),1)&" ( "&$F$136&" ) getting Highest "&$F$135&" of "&TEXT(MAX($B$11:$C$20),"$0,000") -> * Overall CXO or Top Mgmt. ( Job Type ) getting Highest Average Salary of $92,946
I4: ="* "&"Overall "&INDEX($A$11:$A$20,MAX(IF($B$11:$C$20=MIN($B$11:$C$20),ROW($A$11:$A$20)-ROW($A$11)+1)),1)&" ( "&$F$136&" ) getting Lowest "&$F$135&" of "&TEXT(MIN($B$11:$C$20),"$0,000") -> * Overall Reporting ( Job Type ) getting Lowest Average Salary of $16,479
I5: ="* "&INDEX($A$11:$A$20,SUM(IF($D$11:$V$20=MAX($D$11:$V$20),ROW($A$11:$A$20)-ROW($A$11)+1)),1)&" ( "&$F$136&" ) - "&INDEX($D$10:$W$10,1,SUM(IF($D$11:$W$20=MAX($D$11:$V$20),COLUMN($D$10:$W$10)-COLUMN($D$10)+1)),1)&" ( "&INDEX($E$142:$E$144,$F$141)&" ) getting Highest "&$F$135&" of "&TEXT(MAX($D$11:$V$20),"$0,000") -> * Engineer ( Job Type ) - Australia ( Region ) getting Highest Average Salary of $163,695
I7: ="* "&INDEX($A$11:$A$20,SUM(IF($D$11:$V$20=MIN(IF($B$11:$V$20>0,$B$11:$V$20)),ROW($A$11:$A$20)-ROW($A$11)+1)),1)&" ( "&$F$136&" ) - "&INDEX($D$10:$W$10,1,SUM(IF($D$11:$W$20=MIN(IF($B$11:$V$20>0,$B$11:$V$20)),COLUMN($D$10:$W$10)-COLUMN($D$10)+1)),1)&" ( "&INDEX($E$142:$E$144,$F$141)&" ) getting Lowest "&$F$135&" of "&TEXT(MIN(IF($B$11:$V$20>0,$B$11:$V$20)),"$0,000") -> * Reporting ( Job Type ) - Pakistan ( Region ) getting Lowest Average Salary of $1,911
A9: *Click on column headers to view the respective Bar Chart
A10: =VLOOKUP($C$135,$A$136:$B$139,2,0) -> Job Type | B10: =IF(H142=0,"",H142) -> Total | D10: =IF(H143=0,"",H143) -> Australia | F10: =IF(H144=0,"",H144) -> USA | H10: =IF(H145=0,"",H145) -> Canada | J10: =IF(H146=0,"",H146) -> UK | L10: =IF(H147=0,"",H147) -> Other Europe | N10: =IF(H148=0,"",H148) -> ROW | P10: =IF(H149=0,"",H149) -> Other Asia | R10: =IF(H150=0,"",H150) -> India | T10: =IF(H151=0,"",H151) -> Pakistan | V10: =IF(H152=0,"",H152) ->  | X10: =$F$137 -> Average Salary by Job Type ( India - Region ) | AJ10: Selected | AK10: =IF(valRegionPicked="","Total",valRegionPicked) -> India | AL10: India | AO10: =B10 -> Total | AP10: =D10 -> Australia | AQ10: =F10 -> USA | AR10: =H10 -> Canada | AS10: =J10 -> UK | AT10: =L10 -> Other Europe | AU10: =N10 -> ROW | AV10: =P10 -> Other Asia | AW10: =R10 -> India | AX10: =T10 -> Pakistan | AY10: =V10 -> 
A11: =IF(CHOOSE($C$135,C61,C82,C102,C119)=0,"",CHOOSE($C$135,C61,C82,C102,C119)) -> CXO or Top Mgmt. | B11: =IFERROR(CHOOSE($C$135,HLOOKUP(B$10,$D$60:$V$70,$B61+1,0),HLOOKUP(B$10,$D$81:$W$90,$B82+1,0),HLOOKUP(B$10,$D$101:$AB$105,$B102+1,0),HLOOKUP(B$10,$D$118:$AA$123,$B119+1,0)),"") -> 92945.90318 | C11: =IFERROR("("&CHOOSE($C$135,HLOOKUP(B$10,$FE$60:$FW$70,$B61+1,0),HLOOKUP(B$10,$FH$81:$GA$90,$B82+1,0),HLOOKUP(B$10,$FW$101:$GU$105,$B102+1,0),HLOOKUP(B$10,$FT$118:$GQ$123,$B119+1,0))&")","") -> (47) | D11: =IFERROR(CHOOSE($C$135,HLOOKUP(D$10,$D$60:$V$70,$B61+1,0),HLOOKUP(D$10,$D$81:$W$90,$B82+1,0),HLOOKUP(D$10,$D$101:$AB$105,$B102+1,0),HLOOKUP(D$10,$D$118:$AA$123,$B119+1,0)),"") -> 99441.1915 | E11: =IFERROR("("&CHOOSE($C$135,HLOOKUP(D$10,$FE$60:$FW$70,$B61+1,0),HLOOKUP(D$10,$FH$81:$GA$90,$B82+1,0),HLOOKUP(D$10,$FW$101:$GU$105,$B102+1,0),HLOOKUP(D$10,$FT$118:$GQ$123,$B119+1,0))&")","") -> (2) | F11: =IFERROR(CHOOSE($C$135,HLOOKUP(F$10,$D$60:$V$70,$B61+1,0),HLOOKUP(F$10,$D$81:$W$90,$B82+1,0),HLOOKUP(F$10,$D$101:$AB$105,$B102+1,0),HLOOKUP(F$10,$D$118:$AA$123,$B119+1,0)),"") -> 139710.5263 | G11: =IFERROR("("&CHOOSE($C$135,HLOOKUP(F$10,$FE$60:$FW$70,$B61+1,0),HLOOKUP(F$10,$FH$81:$GA$90,$B82+1,0),HLOOKUP(F$10,$FW$101:$GU$105,$B102+1,0),HLOOKUP(F$10,$FT$118:$GQ$123,$B119+1,0))&")","") -> (19) | H11: =IFERROR(CHOOSE($C$135,HLOOKUP(H$10,$D$60:$V$70,$B61+1,0),HLOOKUP(H$10,$D$81:$W$90,$B82+1,0),HLOOKUP(H$10,$D$101:$AB$105,$B102+1,0),HLOOKUP(H$10,$D$118:$AA$123,$B119+1,0)),"") -> 98336.1523 | I11: =IFERROR("("&CHOOSE($C$135,HLOOKUP(H$10,$FE$60:$FW$70,$B61+1,0),HLOOKUP(H$10,$FH$81:$GA$90,$B82+1,0),HLOOKUP(H$10,$FW$101:$GU$105,$B102+1,0),HLOOKUP(H$10,$FT$118:$GQ$123,$B119+1,0))&")","") -> (1) | J11: =IFERROR(CHOOSE($C$135,HLOOKUP(J$10,$D$60:$V$70,$B61+1,0),HLOOKUP(J$10,$D$81:$W$90,$B82+1,0),HLOOKUP(J$10,$D$101:$AB$105,$B102+1,0),HLOOKUP(J$10,$D$118:$AA$123,$B119+1,0)),"") -> 72898.24508 | K11: =IFERROR("("&CHOOSE($C$135,HLOOKUP(J$10,$FE$60:$FW$70,$B61+1,0),HLOOKUP(J$10,$FH$81:$GA$90,$B82+1,0),HLOOKUP(J$10,$FW$101:$GU$105,$B102+1,0),HLOOKUP(J$10,$FT$118:$GQ$123,$B119+1,0))&")","") -> (4) | L11: =IFERROR(CHOOSE($C$135,HLOOKUP(L$10,$D$60:$V$70,$B61+1,0),HLOOKUP(L$10,$D$81:$W$90,$B82+1,0),HLOOKUP(L$10,$D$101:$AB$105,$B102+1,0),HLOOKUP(L$10,$D$118:$AA$123,$B119+1,0)),"") -> 86469.8033 | M11: =IFERROR("("&CHOOSE($C$135,HLOOKUP(L$10,$FE$60:$FW$70,$B61+1,0),HLOOKUP(L$10,$FH$81:$GA$90,$B82+1,0),HLOOKUP(L$10,$FW$101:$GU$105,$B102+1,0),HLOOKUP(L$10,$FT$118:$GQ$123,$B119+1,0))&")","") -> (6) | N11: =IFERROR(CHOOSE($C$135,HLOOKUP(N$10,$D$60:$V$70,$B61+1,0),HLOOKUP(N$10,$D$81:$W$90,$B82+1,0),HLOOKUP(N$10,$D$101:$AB$105,$B102+1,0),HLOOKUP(N$10,$D$118:$AA$123,$B119+1,0)),"") -> 65250.4034 | O11: =IFERROR("("&CHOOSE($C$135,HLOOKUP(N$10,$FE$60:$FW$70,$B61+1,0),HLOOKUP(N$10,$FH$81:$GA$90,$B82+1,0),HLOOKUP(N$10,$FW$101:$GU$105,$B102+1,0),HLOOKUP(N$10,$FT$118:$GQ$123,$B119+1,0))&")","") -> (4) | P11: =IFERROR(CHOOSE($C$135,HLOOKUP(P$10,$D$60:$V$70,$B61+1,0),HLOOKUP(P$10,$D$81:$W$90,$B82+1,0),HLOOKUP(P$10,$D$101:$AB$105,$B102+1,0),HLOOKUP(P$10,$D$118:$AA$123,$B119+1,0)),"") -> 35000 | Q11: =IFERROR("("&CHOOSE($C$135,HLOOKUP(P$10,$FE$60:$FW$70,$B61+1,0),HLOOKUP(P$10,$FH$81:$GA$90,$B82+1,0),HLOOKUP(P$10,$FW$101:$GU$105,$B102+1,0),HLOOKUP(P$10,$FT$118:$GQ$123,$B119+1,0))&")","") -> (1) | R11: =IFERROR(CHOOSE($C$135,HLOOKUP(R$10,$D$60:$V$70,$B61+1,0),HLOOKUP(R$10,$D$81:$W$90,$B82+1,0),HLOOKUP(R$10,$D$101:$AB$105,$B102+1,0),HLOOKUP(R$10,$D$118:$AA$123,$B119+1,0)),"") -> 31032.55002 | S11: =IFERROR("("&CHOOSE($C$135,HLOOKUP(R$10,$FE$60:$FW$70,$B61+1,0),HLOOKUP(R$10,$FH$81:$GA$90,$B82+1,0),HLOOKUP(R$10,$FW$101:$GU$105,$B102+1,0),HLOOKUP(R$10,$FT$118:$GQ$123,$B119+1,0))&")","") -> (10) | T11: =IFERROR(CHOOSE($C$135,HLOOKUP(T$10,$D$60:$V$70,$B61+1,0),HLOOKUP(T$10,$D$81:$W$90,$B82+1,0),HLOOKUP(T$10,$D$101:$AB$105,$B102+1,0),HLOOKUP(T$10,$D$118:$AA$123,$B119+1,0)),"") -> 0 | U11: =IFERROR("("&CHOOSE($C$135,HLOOKUP(T$10,$FE$60:$FW$70,$B61+1,0),HLOOKUP(T$10,$FH$81:$GA$90,$B82+1,0),HLOOKUP(T$10,$FW$101:$GU$105,$B102+1,0),HLOOKUP(T$10,$FT$118:$GQ$123,$B119+1,0))&")","") -> (0) | V11: =IFERROR(CHOOSE($C$135,HLOOKUP(V$10,$D$60:$V$70,$B61+1,0),HLOOKUP(V$10,$D$81:$W$90,$B82+1,0),HLOOKUP(V$10,$D$101:$AB$105,$B102+1,0),HLOOKUP(V$10,$D$118:$AA$123,$B119+1,0)),"") ->  | W11: =IFERROR("("&CHOOSE($C$135,HLOOKUP(V$10,$FE$60:$FW$70,$B61+1,0),HLOOKUP(V$10,$FH$81:$GA$90,$B82+1,0),HLOOKUP(V$10,$FW$101:$GU$105,$B102+1,0),HLOOKUP(V$10,$FT$118:$GQ$123,$B119+1,0))&")","") ->  | AN11: =A11 -> CXO or Top Mgmt. | AO11: =IF($AK$10=AO$10,B11,NA()) ->  | AP11: =IF($AK$10=AP$10,D11,NA()) ->  | AQ11: =IF($AK$10=AQ$10,F11,NA()) ->  | AR11: =IF($AK$10=AR$10,H11,NA()) ->  | AS11: =IF($AK$10=AS$10,J11,NA()) ->  | AT11: =IF($AK$10=AT$10,L11,NA()) ->  | AU11: =IF($AK$10=AU$10,N11,NA()) ->  | AV11: =IF($AK$10=AV$10,P11,NA()) ->  | AW11: =IF($AK$10=AW$10,R11,NA()) -> 31032.55002 | AX11: =IF($AK$10=AX$10,T11,NA()) ->  | AY11: =IF($AK$10=AY$10,V11,NA()) -> 
A12: =IF(CHOOSE($C$135,C62,C83,C103,C120)=0,"",CHOOSE($C$135,C62,C83,C103,C120)) -> Controller | B12: 61690.25266 | C12: =IFERROR("("&CHOOSE($C$135,HLOOKUP(B$10,$FE$60:$FW$70,$B62+1,0),HLOOKUP(B$10,$FH$81:$GA$90,$B83+1,0),HLOOKUP(B$10,$FW$101:$GU$105,$B103+1,0),HLOOKUP(B$10,$FT$118:$GQ$123,$B120+1,0))&")","") -> (55) | D12: 82952.65205 | E12: =IFERROR("("&CHOOSE($C$135,HLOOKUP(D$10,$FE$60:$FW$70,$B62+1,0),HLOOKUP(D$10,$FH$81:$GA$90,$B83+1,0),HLOOKUP(D$10,$FW$101:$GU$105,$B103+1,0),HLOOKUP(D$10,$FT$118:$GQ$123,$B120+1,0))&")","") -> (3) | F12: =IFERROR(CHOOSE($C$135,HLOOKUP(F$10,$D$60:$V$70,$B62+1,0),HLOOKUP(F$10,$D$81:$W$90,$B83+1,0),HLOOKUP(F$10,$D$101:$AB$105,$B103+1,0),HLOOKUP(F$10,$D$118:$AA$123,$B120+1,0)),"") -> 88308.92857 | G12: =IFERROR("("&CHOOSE($C$135,HLOOKUP(F$10,$FE$60:$FW$70,$B62+1,0),HLOOKUP(F$10,$FH$81:$GA$90,$B83+1,0),HLOOKUP(F$10,$FW$101:$GU$105,$B103+1,0),HLOOKUP(F$10,$FT$118:$GQ$123,$B120+1,0))&")","") -> (14) | H12: =IFERROR(CHOOSE($C$135,HLOOKUP(H$10,$D$60:$V$70,$B62+1,0),HLOOKUP(H$10,$D$81:$W$90,$B83+1,0),HLOOKUP(H$10,$D$101:$AB$105,$B103+1,0),HLOOKUP(H$10,$D$118:$AA$123,$B120+1,0)),"") -> 0 | I12: =IFERROR("("&CHOOSE($C$135,HLOOKUP(H$10,$FE$60:$FW$70,$B62+1,0),HLOOKUP(H$10,$FH$81:$GA$90,$B83+1,0),HLOOKUP(H$10,$FW$101:$GU$105,$B103+1,0),HLOOKUP(H$10,$FT$118:$GQ$123,$B120+1,0))&")","") -> (0) | J12: =IFERROR(CHOOSE($C$135,HLOOKUP(J$10,$D$60:$V$70,$B62+1,0),HLOOKUP(J$10,$D$81:$W$90,$B83+1,0),HLOOKUP(J$10,$D$101:$AB$105,$B103+1,0),HLOOKUP(J$10,$D$118:$AA$123,$B120+1,0)),"") -> 110647.7147 | K12: =IFERROR("("&CHOOSE($C$135,HLOOKUP(J$10,$FE$60:$FW$70,$B62+1,0),HLOOKUP(J$10,$FH$81:$GA$90,$B83+1,0),HLOOKUP(J$10,$FW$101:$GU$105,$B103+1,0),HLOOKUP(J$10,$FT$118:$GQ$123,$B120+1,0))&")","") -> (5) | L12: =IFERROR(CHOOSE($C$135,HLOOKUP(L$10,$D$60:$V$70,$B62+1,0),HLOOKUP(L$10,$D$81:$W$90,$B83+1,0),HLOOKUP(L$10,$D$101:$AB$105,$B103+1,0),HLOOKUP(L$10,$D$118:$AA$123,$B120+1,0)),"") -> 73917.82309 | M12: =IFERROR("("&CHOOSE($C$135,HLOOKUP(L$10,$FE$60:$FW$70,$B62+1,0),HLOOKUP(L$10,$FH$81:$GA$90,$B83+1,0),HLOOKUP(L$10,$FW$101:$GU$105,$B103+1,0),HLOOKUP(L$10,$FT$118:$GQ$123,$B120+1,0))&")","") -> (14) | N12: =IFERROR(CHOOSE($C$135,HLOOKUP(N$10,$D$60:$V$70,$B62+1,0),HLOOKUP(N$10,$D$81:$W$90,$B83+1,0),HLOOKUP(N$10,$D$101:$AB$105,$B103+1,0),HLOOKUP(N$10,$D$118:$AA$123,$B120+1,0)),"") -> 21712.84481 | O12: =IFERROR("("&CHOOSE($C$135,HLOOKUP(N$10,$FE$60:$FW$70,$B62+1,0),HLOOKUP(N$10,$FH$81:$GA$90,$B83+1,0),HLOOKUP(N$10,$FW$101:$GU$105,$B103+1,0),HLOOKUP(N$10,$FT$118:$GQ$123,$B120+1,0))&")","") -> (9) | P12: =IFERROR(CHOOSE($C$135,HLOOKUP(P$10,$D$60:$V$70,$B62+1,0),HLOOKUP(P$10,$D$81:$W$90,$B83+1,0),HLOOKUP(P$10,$D$101:$AB$105,$B103+1,0),HLOOKUP(P$10,$D$118:$AA$123,$B120+1,0)),"") -> 17000 | Q12: =IFERROR("("&CHOOSE($C$135,HLOOKUP(P$10,$FE$60:$FW$70,$B62+1,0),HLOOKUP(P$10,$FH$81:$GA$90,$B83+1,0),HLOOKUP(P$10,$FW$101:$GU$105,$B103+1,0),HLOOKUP(P$10,$FT$118:$GQ$123,$B120+1,0))&")","") -> (3) | R12: =IFERROR(CHOOSE($C$135,HLOOKUP(R$10,$D$60:$V$70,$B62+1,0),HLOOKUP(R$10,$D$81:$W$90,$B83+1,0),HLOOKUP(R$10,$D$101:$AB$105,$B103+1,0),HLOOKUP(R$10,$D$118:$AA$123,$B120+1,0)),"") -> 10468.17715 | S12: =IFERROR("("&CHOOSE($C$135,HLOOKUP(R$10,$FE$60:$FW$70,$B62+1,0),HLOOKUP(R$10,$FH$81:$GA$90,$B83+1,0),HLOOKUP(R$10,$FW$101:$GU$105,$B103+1,0),HLOOKUP(R$10,$FT$118:$GQ$123,$B120+1,0))&")","") -> (7) | T12: =IFERROR(CHOOSE($C$135,HLOOKUP(T$10,$D$60:$V$70,$B62+1,0),HLOOKUP(T$10,$D$81:$W$90,$B83+1,0),HLOOKUP(T$10,$D$101:$AB$105,$B103+1,0),HLOOKUP(T$10,$D$118:$AA$123,$B120+1,0)),"") -> 0 | U12: =IFERROR("("&CHOOSE($C$135,HLOOKUP(T$10,$FE$60:$FW$70,$B62+1,0),HLOOKUP(T$10,$FH$81:$GA$90,$B83+1,0),HLOOKUP(T$10,$FW$101:$GU$105,$B103+1,0),HLOOKUP(T$10,$FT$118:$GQ$123,$B120+1,0))&")","") -> (0) | V12: =IFERROR(CHOOSE($C$135,HLOOKUP(V$10,$D$60:$V$70,$B62+1,0),HLOOKUP(V$10,$D$81:$W$90,$B83+1,0),HLOOKUP(V$10,$D$101:$AB$105,$B103+1,0),HLOOKUP(V$10,$D$118:$AA$123,$B120+1,0)),"") ->  | W12: =IFERROR("("&CHOOSE($C$135,HLOOKUP(V$10,$FE$60:$FW$70,$B62+1,0),HLOOKUP(V$10,$FH$81:$GA$90,$B83+1,0),HLOOKUP(V$10,$FW$101:$GU$105,$B103+1,0),HLOOKUP(V$10,$FT$118:$GQ$123,$B120+1,0))&")","") ->  | AN12: =A12 -> Controller | AO12: =IF($AK$10=AO$10,B12,NA()) ->  | AP12: =IF($AK$10=AP$10,D12,NA()) ->  | AQ12: =IF($AK$10=AQ$10,F12,NA()) ->  | AR12: =IF($AK$10=AR$10,H12,NA()) ->  | AS12: =IF($AK$10=AS$10,J12,NA()) ->  | AT12: =IF($AK$10=AT$10,L12,NA()) ->  | AU12: =IF($AK$10=AU$10,N12,NA()) ->  | AV12: =IF($AK$10=AV$10,P12,NA()) ->  | AW12: =IF($AK$10=AW$10,R12,NA()) -> 10468.17715 | AX12: =IF($AK$10=AX$10,T12,NA()) ->  | AY12: =IF($AK$10=AY$10,V12,NA()) -> 
A13: Consultant | B13: 60430.12922 | C13: (58) | D13: 108620.3784 | E13: (6) | F13: =IFERROR(CHOOSE($C$135,HLOOKUP(F$10,$D$60:$V$70,$B63+1,0),HLOOKUP(F$10,$D$81:$W$90,$B84+1,0),HLOOKUP(F$10,$D$101:$AB$105,$B104+1,0),HLOOKUP(F$10,$D$118:$AA$123,$B121+1,0)),"") -> 110125 | G13: (8) | H13: =IFERROR(CHOOSE($C$135,HLOOKUP(H$10,$D$60:$V$70,$B63+1,0),HLOOKUP(H$10,$D$81:$W$90,$B84+1,0),HLOOKUP(H$10,$D$101:$AB$105,$B104+1,0),HLOOKUP(H$10,$D$118:$AA$123,$B121+1,0)),"") -> 55068.24529 | I13: (1) | J13: =IFERROR(CHOOSE($C$135,HLOOKUP(J$10,$D$60:$V$70,$B63+1,0),HLOOKUP(J$10,$D$81:$W$90,$B84+1,0),HLOOKUP(J$10,$D$101:$AB$105,$B104+1,0),HLOOKUP(J$10,$D$118:$AA$123,$B121+1,0)),"") -> 89101.35772 | K13: (7) | L13: =IFERROR(CHOOSE($C$135,HLOOKUP(L$10,$D$60:$V$70,$B63+1,0),HLOOKUP(L$10,$D$81:$W$90,$B84+1,0),HLOOKUP(L$10,$D$101:$AB$105,$B104+1,0),HLOOKUP(L$10,$D$118:$AA$123,$B121+1,0)),"") -> 53663.3721 | M13: (11) | N13: =IFERROR(CHOOSE($C$135,HLOOKUP(N$10,$D$60:$V$70,$B63+1,0),HLOOKUP(N$10,$D$81:$W$90,$B84+1,0),HLOOKUP(N$10,$D$101:$AB$105,$B104+1,0),HLOOKUP(N$10,$D$118:$AA$123,$B121+1,0)),"") -> 46200 | O13: (5) | P13: =IFERROR(CHOOSE($C$135,HLOOKUP(P$10,$D$60:$V$70,$B63+1,0),HLOOKUP(P$10,$D$81:$W$90,$B84+1,0),HLOOKUP(P$10,$D$101:$AB$105,$B104+1,0),HLOOKUP(P$10,$D$118:$AA$123,$B121+1,0)),"") -> 57750 | Q13: (4) | R13: =IFERROR(CHOOSE($C$135,HLOOKUP(R$10,$D$60:$V$70,$B63+1,0),HLOOKUP(R$10,$D$81:$W$90,$B84+1,0),HLOOKUP(R$10,$D$101:$AB$105,$B104+1,0),HLOOKUP(R$10,$D$118:$AA$123,$B121+1,0)),"") -> 14851.58602 | S13: (14) | T13: =IFERROR(CHOOSE($C$135,HLOOKUP(T$10,$D$60:$V$70,$B63+1,0),HLOOKUP(T$10,$D$81:$W$90,$B84+1,0),HLOOKUP(T$10,$D$101:$AB$105,$B104+1,0),HLOOKUP(T$10,$D$118:$AA$123,$B121+1,0)),"") -> 16614.08872 | U13: (2) | V13: =IFERROR(CHOOSE($C$135,HLOOKUP(V$10,$D$60:$V$70,$B63+1,0),HLOOKUP(V$10,$D$81:$W$90,$B84+1,0),HLOOKUP(V$10,$D$101:$AB$105,$B104+1,0),HLOOKUP(V$10,$D$118:$AA$123,$B121+1,0)),"") ->  | AN13: Consultant | AW13: 14851.58602
A14: Specialist | B14: 49956.13294 | C14: (27) | D14: 94851.59805 | E14: (2) | F14: =IFERROR(CHOOSE($C$135,HLOOKUP(F$10,$D$60:$V$70,$B64+1,0),HLOOKUP(F$10,$D$81:$W$90,$B85+1,0),HLOOKUP(F$10,$D$101:$AB$105,$B105+1,0),HLOOKUP(F$10,$D$118:$AA$123,$B122+1,0)),"") -> 51833.33333 | G14: (12) | H14: =IFERROR(CHOOSE($C$135,HLOOKUP(H$10,$D$60:$V$70,$B64+1,0),HLOOKUP(H$10,$D$81:$W$90,$B85+1,0),HLOOKUP(H$10,$D$101:$AB$105,$B105+1,0),HLOOKUP(H$10,$D$118:$AA$123,$B122+1,0)),"") -> 0 | I14: (0) | J14: =IFERROR(CHOOSE($C$135,HLOOKUP(J$10,$D$60:$V$70,$B64+1,0),HLOOKUP(J$10,$D$81:$W$90,$B85+1,0),HLOOKUP(J$10,$D$101:$AB$105,$B105+1,0),HLOOKUP(J$10,$D$118:$AA$123,$B122+1,0)),"") -> 61864.99718 | K14: (4) | L14: =IFERROR(CHOOSE($C$135,HLOOKUP(L$10,$D$60:$V$70,$B64+1,0),HLOOKUP(L$10,$D$81:$W$90,$B85+1,0),HLOOKUP(L$10,$D$101:$AB$105,$B105+1,0),HLOOKUP(L$10,$D$118:$AA$123,$B122+1,0)),"") -> 88927.96073 | M14: (1) | N14: =IFERROR(CHOOSE($C$135,HLOOKUP(N$10,$D$60:$V$70,$B64+1,0),HLOOKUP(N$10,$D$81:$W$90,$B85+1,0),HLOOKUP(N$10,$D$101:$AB$105,$B105+1,0),HLOOKUP(N$10,$D$118:$AA$123,$B122+1,0)),"") -> 28582.93027 | O14: (2) | P14: =IFERROR(CHOOSE($C$135,HLOOKUP(P$10,$D$60:$V$70,$B64+1,0),HLOOKUP(P$10,$D$81:$W$90,$B85+1,0),HLOOKUP(P$10,$D$101:$AB$105,$B105+1,0),HLOOKUP(P$10,$D$118:$AA$123,$B122+1,0)),"") -> 8259.5 | Q14: (2) | R14: =IFERROR(CHOOSE($C$135,HLOOKUP(R$10,$D$60:$V$70,$B64+1,0),HLOOKUP(R$10,$D$81:$W$90,$B85+1,0),HLOOKUP(R$10,$D$101:$AB$105,$B105+1,0),HLOOKUP(R$10,$D$118:$AA$123,$B122+1,0)),"") -> 31759.89586 | S14: (4) | T14: =IFERROR(CHOOSE($C$135,HLOOKUP(T$10,$D$60:$V$70,$B64+1,0),HLOOKUP(T$10,$D$81:$W$90,$B85+1,0),HLOOKUP(T$10,$D$101:$AB$105,$B105+1,0),HLOOKUP(T$10,$D$118:$AA$123,$B122+1,0)),"") -> 0 | U14: (0) | V14: =IFERROR(CHOOSE($C$135,HLOOKUP(V$10,$D$60:$V$70,$B64+1,0),HLOOKUP(V$10,$D$81:$W$90,$B85+1,0),HLOOKUP(V$10,$D$101:$AB$105,$B105+1,0),HLOOKUP(V$10,$D$118:$AA$123,$B122+1,0)),"") ->  | AN14: Specialist | AW14: 31759.89586
A15: Engineer | B15: 48093.59249 | C15: (49) | D15: 163695.4999 | E15: (2) | F15: =IFERROR(CHOOSE($C$135,HLOOKUP(F$10,$D$60:$V$70,$B65+1,0),HLOOKUP(F$10,$D$81:$W$90,$B86+1,0),HLOOKUP(F$10,$D$101:$AB$105,$B106+1,0),HLOOKUP(F$10,$D$118:$AA$123,$B123+1,0)),"") -> 65330 | G15: (12) | H15: =IFERROR(CHOOSE($C$135,HLOOKUP(H$10,$D$60:$V$70,$B65+1,0),HLOOKUP(H$10,$D$81:$W$90,$B86+1,0),HLOOKUP(H$10,$D$101:$AB$105,$B106+1,0),HLOOKUP(H$10,$D$118:$AA$123,$B123+1,0)),"") -> 0 | I15: (0) | J15: =IFERROR(CHOOSE($C$135,HLOOKUP(J$10,$D$60:$V$70,$B65+1,0),HLOOKUP(J$10,$D$81:$W$90,$B86+1,0),HLOOKUP(J$10,$D$101:$AB$105,$B106+1,0),HLOOKUP(J$10,$D$118:$AA$123,$B123+1,0)),"") -> 108826.178 | K15: (3) | L15: =IFERROR(CHOOSE($C$135,HLOOKUP(L$10,$D$60:$V$70,$B65+1,0),HLOOKUP(L$10,$D$81:$W$90,$B86+1,0),HLOOKUP(L$10,$D$101:$AB$105,$B106+1,0),HLOOKUP(L$10,$D$118:$AA$123,$B123+1,0)),"") -> 69545.92681 | M15: (5) | N15: =IFERROR(CHOOSE($C$135,HLOOKUP(N$10,$D$60:$V$70,$B65+1,0),HLOOKUP(N$10,$D$81:$W$90,$B86+1,0),HLOOKUP(N$10,$D$101:$AB$105,$B106+1,0),HLOOKUP(N$10,$D$118:$AA$123,$B123+1,0)),"") -> 44571.13121 | O15: (5) | P15: =IFERROR(CHOOSE($C$135,HLOOKUP(P$10,$D$60:$V$70,$B65+1,0),HLOOKUP(P$10,$D$81:$W$90,$B86+1,0),HLOOKUP(P$10,$D$101:$AB$105,$B106+1,0),HLOOKUP(P$10,$D$118:$AA$123,$B123+1,0)),"") -> 35468.27348 | Q15: (3) | R15: =IFERROR(CHOOSE($C$135,HLOOKUP(R$10,$D$60:$V$70,$B65+1,0),HLOOKUP(R$10,$D$81:$W$90,$B86+1,0),HLOOKUP(R$10,$D$101:$AB$105,$B106+1,0),HLOOKUP(R$10,$D$118:$AA$123,$B123+1,0)),"") -> 12724.54672 | S15: (19) | T15: =IFERROR(CHOOSE($C$135,HLOOKUP(T$10,$D$60:$V$70,$B65+1,0),HLOOKUP(T$10,$D$81:$W$90,$B86+1,0),HLOOKUP(T$10,$D$101:$AB$105,$B106+1,0),HLOOKUP(T$10,$D$118:$AA$123,$B123+1,0)),"") -> 0 | U15: (0) | V15: =IFERROR(CHOOSE($C$135,HLOOKUP(V$10,$D$60:$V$70,$B65+1,0),HLOOKUP(V$10,$D$81:$W$90,$B86+1,0),HLOOKUP(V$10,$D$101:$AB$105,$B106+1,0),HLOOKUP(V$10,$D$118:$AA$123,$B123+1,0)),"") ->  | AN15: Engineer | AW15: 12724.54672
... 15 more rows

Sheet Data
B1: Cleaned Data
B3: Unique ID | C3: Salary in USD | D3: Job Type | E3: Country | F3: Region | G3: Work Hour per day on Excel | H3: Years of Experience
B4: ID0560 | C4: 54000 | D4: Specialist | E4: USA | F4: USA | G4: 8 hours | H4: 0 to 5 years
B5: ID0561 | C5: 15600 | D5: Controller | E5: Brazil | F5: ROW | G5: 4 to 6 hours | H5: 10 to 20 years
B6: ID0562 | C6: 35000 | D6: Analyst | E6: USA | F6: USA | G6: 1 to 2 hours | H6: 5 to 10 years
B7: ID0563 | C7: 188000 | D7: CXO or Top Mgmt. | E7: USA | F7: USA | G7: 1 to 2 hours | H7: 10 to 20 years
B8: ID0564 | C8: 27500 | D8: Analyst | E8: USA | F8: USA | G8: 8 hours | H8: 0 to 5 years
B9: ID0565 | C9: 140000 | D9: Controller | E9: USA | F9: USA | G9: 2 to 3 hours | H9: 5 to 10 years
B10: ID0566 | C10: 69871.96914 | D10: Analyst | E10: Netherlands | F10: Other Europe | G10: 8 hours | H10: 5 to 10 years
B11: ID0567 | C11: 45000 | D11: Analyst | E11: USA | F11: USA | G11: 4 to 6 hours | H11: 0 to 5 years
B12: ID0568 | C12: 95000 | D12: Analyst | E12: Australia | F12: Australia | G12: 2 to 3 hours | H12: 10 to 20 years
B13: ID0569 | C13: 158085.9967 | D13: Manager | E13: Australia | F13: Australia | G13: 4 to 6 hours | H13: 10 to 20 years
B14: ID0570 | C14: 63807.04749 | D14: Analyst | E14: New Zealand | F14: ROW | G14: 4 to 6 hours | H14: 20 to 30 years
B15: ID0572 | C15: 38000 | D15: Analyst | E15: USA | F15: USA | G15: 8 hours | H15: 10 to 20 years
B16: ID0573 | C16: 90000 | D16: Manager | E16: USA | F16: USA | G16: 4 to 6 hours | H16: 5 to 10 years
B17: ID0574 | C17: 45393.93424 | D17: Manager | E17: UK | F17: UK | G17: 4 to 6 hours | H17: 20 to 30 years
B18: ID0575 | C18: 33099.74371 | D18: Analyst | E18: UK | F18: UK | G18: 8 hours | H18: 5 to 10 years
B19: ID0576 | C19: 4285 | D19: Analyst | E19: India | F19: India | G19: 8 hours | H19: 5 to 10 years
B20: ID0577 | C20: 6000 | D20: Manager | E20: Guyana | F20: ROW | G20: 1 to 2 hours | H20: 10 to 20 years
B21: ID0578 | C21: 22438.01244 | D21: Analyst | E21: Australia | F21: Australia | G21: 4 to 6 hours | H21: 5 to 10 years
B22: ID0579 | C22: 90000 | D22: Manager | E22: USA | F22: USA | G22: 2 to 3 hours | H22: 10 to 20 years
B23: ID0580 | C23: 150000 | D23: CXO or Top Mgmt. | E23: USA | F23: USA | G23: 4 to 6 hours | H23: 20 to 30 years
B24: ID0581 | C24: 132588.2553 | D24: Accountant | E24: Australia | F24: Australia | G24: 2 to 3 hours | H24: 20 to 30 years
B25: ID0582 | C25: 45000 | D25: Analyst | E25: USA | F25: USA | G25: 4 to 6 hours | H25: 0 to 5 years
B26: ID0583 | C26: 50000 | D26: Specialist | E26: USA | F26: USA | G26: 2 to 3 hours | H26: 5 to 10 years
B27: ID0584 | C27: 300000 | D27: CXO or Top Mgmt. | E27: USA | F27: USA | G27: 2 to 3 hours | H27: 20 to 30 years
B28: ID0585 | C28: 104030.785 | D28: Manager | E28: Australia | F28: Australia | G28: 1 to 2 hours | H28: 5 to 10 years
B29: ID0586 | C29: 115000 | D29: Manager | E29: USA | F29: USA | G29: 4 to 6 hours | H29: 10 to 20 years
B30: ID0587 | C30: 70000 | D30: Analyst | E30: USA | F30: USA | G30: 4 to 6 hours | H30: 0 to 5 years
B31: ID0588 | C31: 108110.4236 | D31: Specialist | E31: Australia | F31: Australia | G31: 4 to 6 hours | H31: 10 to 20 years
B32: ID0589 | C32: 75000 | D32: Analyst | E32: USA | F32: USA | G32: 2 to 3 hours | H32: 20 to 30 years
B33: ID0590 | C33: 40414 | D33: Analyst | E33: USA | F33: USA | G33: 4 to 6 hours | H33: 5 to 10 years
B34: ID0591 | C34: 65000 | D34: Analyst | E34: USA | F34: USA | G34: 4 to 6 hours | H34: 0 to 5 years
B35: ID0592 | C35: 120000 | D35: Analyst | E35: USA | F35: USA | G35: 8 hours | H35: 5 to 10 years
B36: ID0593 | C36: 15092.18021 | D36: Accountant | E36: china | F36: Other Asia | G36: 4 to 6 hours | H36: 5 to 10 years
B37: ID0594 | C37: 36000 | D37: Consultant | E37: Russia | F37: ROW | G37: 8 hours | H37: 5 to 10 years
B38: ID0595 | C38: 63519.97195 | D38: Analyst | E38: Germany | F38: Other Europe | G38: 2 to 3 hours | H38: 0 to 5 years
B39: ID0596 | C39: 108000 | D39: Consultant | E39: USA | F39: USA | G39: 2 to 3 hours | H39: 5 to 10 years
B40: ID0597 | C40: 75000 | D40: Analyst | E40: USA | F40: USA | G40: 4 to 6 hours | H40: 0 to 5 years
B41: ID0598 | C41: 7123.166675 | D41: Manager | E41: India | F41: India | G41: 1 to 2 hours | H41: 0 to 5 years
B42: ID0599 | C42: 50000 | D42: Manager | E42: India | F42: India | G42: 1 to 2 hours | H42: 20 to 30 years
B43: ID0600 | C43: 45000 | D43: Analyst | E43: USA | F43: USA | G43: 4 to 6 hours | H43: 10 to 20 years
B44: ID0601 | C44: 45000 | D44: Accountant | E44: USA | F44: USA | G44: 4 to 6 hours | H44: 5 to 10 years
B45: ID0602 | C45: 90000 | D45: Manager | E45: USA | F45: USA | G45: 2 to 3 hours | H45: 10 to 20 years
B46: ID0603 | C46: 4273.900005 | D46: Analyst | E46: India | F46: India | G46: 2 to 3 hours | H46: 0 to 5 years
B47: ID0604 | C47: 50000 | D47: Manager | E47: India | F47: India | G47: 1 to 2 hours | H47: 5 to 10 years
B48: ID0605 | C48: 65000 | D48: Analyst | E48: USA | F48: USA | G48: 2 to 3 hours | H48: 10 to 20 years
B49: ID0606 | C49: 70000 | D49: Analyst | E49: USA | F49: USA | G49: 2 to 3 hours | H49: 10 to 20 years
B50: ID0608 | C50: 160000 | D50: Analyst | E50: USA | F50: USA | G50: 4 to 6 hours | H50: 0 to 5 years
B51: ID0609 | C51: 101990.9656 | D51: Manager | E51: Australia | F51: Australia | G51: 2 to 3 hours | H51: 10 to 20 years
B52: ID0611 | C52: 6767.008341 | D52: Manager | E52: India | F52: India | G52: 4 to 6 hours | H52: 5 to 10 years
B53: ID0612 | C53: 30000 | D53: Analyst | E53: USA | F53: USA | G53: 2 to 3 hours | H53: 5 to 10 years
B54: ID0613 | C54: 7479.325009 | D54: Analyst | E54: India | F54: India | G54: 4 to 6 hours | H54: 0 to 5 years
B55: ID0614 | C55: 61000 | D55: Manager | E55: USA | F55: USA | G55: 4 to 6 hours | H55: 0 to 5 years
B56: ID0615 | C56: 13800 | D56: Controller | E56: Sri Lanka | F56: Other Asia | G56: 4 to 6 hours | H56: 10 to 20 years
B57: ID0616 | C57: 15136.72918 | D57: Analyst | E57: India | F57: India | G57: 4 to 6 hours | H57: 5 to 10 years
B58: ID0617 | C58: 32054.25004 | D58: Manager | E58: India | F58: India | G58: 2 to 3 hours | H58: 5 to 10 years
B59: ID0618 | C59: 80000 | D59: Controller | E59: USA | F59: USA | G59: 4 to 6 hours | H59: 10 to 20 years
B60: ID0619 | C60: 21000 | D60: Manager | E60: India | F60: India | G60: 8 hours | H60: 20 to 30 years
B61: ID0620 | C61: 245840.3808 | D61: Analyst | E61: Canada | F61: Canada | G61: 4 to 6 hours | H61: More than 30
B62: ID0621 | C62: 2849.26667 | D62: Reporting | E62: India | F62: India | G62: 8 hours | H62: 0 to 5 years
B63: ID0622 | C63: 8400 | D63: Manager | E63: India | F63: India | G63: 8 hours | H63: 20 to 30 years
B64: ID0623 | C64: 86692.32079 | D64: Consultant | E64: Australia | F64: Australia | G64: 1 to 2 hours | H64: 10 to 20 years
B65: ID0624 | C65: 50000 | D65: Manager | E65: USA | F65: USA | G65: 4 to 6 hours | H65: 10 to 20 years
B66: ID0625 | C66: 4000 | D66: Reporting | E66: India | F66: India | G66: 8 hours | H66: 5 to 10 years
B67: ID0626 | C67: 101990.9656 | D67: Analyst | E67: Australia | F67: Australia | G67: 8 hours | H67: 0 to 5 years
B68: ID0627 | C68: 95000 | D68: Manager | E68: USA | F68: USA | G68: 1 to 2 hours | H68: 5 to 10 years
B69: ID0628 | C69: 10000 | D69: Manager | E69: Indonesia | F69: Other Asia | G69: 2 to 3 hours | H69: 0 to 5 years
B70: ID0629 | C70: 4200 | D70: Reporting | E70: India | F70: India | G70: 8 hours | H70: 0 to 5 years
B71: ID0630 | C71: 12821.70001 | D71: Manager | E71: India | F71: India | G71: 4 to 6 hours | H71: 10 to 20 years
B72: ID0631 | C72: 39000 | D72: Analyst | E72: USA | F72: USA | G72: 8 hours | H72: 0 to 5 years
B73: ID0632 | C73: 60000 | D73: Analyst | E73: USA | F73: USA | G73: 4 to 6 hours | H73: 10 to 20 years
B74: ID0633 | C74: 173384.6416 | D74: Analyst | E74: Australia | F74: Australia | G74: 8 hours | H74: 5 to 10 years
B75: ID0634 | C75: 125000 | D75: Analyst | E75: USA | F75: USA | G75: 2 to 3 hours | H75: 10 to 20 years
B76: ID0635 | C76: 79552.9532 | D76: Accountant | E76: Australia | F76: Australia | G76: 8 hours | H76: 0 to 5 years
B77: ID0636 | C77: 3561.583337 | D77: Accountant | E77: India | F77: India | G77: 4 to 6 hours | H77: 0 to 5 years
B78: ID0637 | C78: 80000 | D78: Manager | E78: USA | F78: USA | G78: 4 to 6 hours | H78: 5 to 10 years
B79: ID0638 | C79: 10684.75001 | D79: Analyst | E79: India | F79: India | G79: 2 to 3 hours | H79: 0 to 5 years
B80: ID0639 | C80: 5342.375006 | D80: Engineer | E80: India | F80: India | G80: 8 hours | H80: 0 to 5 years
B81: ID0640 | C81: 71231.66675 | D81: Manager | E81: India | F81: India | G81: 4 to 6 hours | H81: 0 to 5 years
B82: ID0641 | C82: 80135.62509 | D82: CXO or Top Mgmt. | E82: India | F82: India | G82: 1 to 2 hours | H82: 5 to 10 years
B83: ID0642 | C83: 54084.88377 | D83: Manager | E83: Canada | F83: Canada | G83: 4 to 6 hours | H83: 0 to 5 years
B84: ID0643 | C84: 53000 | D84: Analyst | E84: USA | F84: USA | G84: 4 to 6 hours | H84: 20 to 30 years
B85: ID0644 | C85: 5342.375006 | D85: Reporting | E85: India | F85: India | G85: 4 to 6 hours | H85: 0 to 5 years
B86: ID0645 | C86: 7123.166675 | D86: Manager | E86: India | F86: India | G86: 1 to 2 hours | H86: 0 to 5 years
B87: ID0646 | C87: 10684.75001 | D87: Manager | E87: India | F87: India | G87: 4 to 6 hours | H87: 10 to 20 years
B88: ID0647 | C88: 4000 | D88: Reporting | E88: India | F88: India | G88: 8 hours | H88: 0 to 5 years
B89: ID0648 | C89: 8000 | D89: Manager | E89: Thailand | F89: Other Asia | G89: 8 hours | H89: 0 to 5 years
B90: ID0649 | C90: 2671.187503 | D90: Manager | E90: India | F90: India | G90: 2 to 3 hours | H90: 0 to 5 years
B91: ID0650 | C91: 14246.33335 | D91: Engineer | E91: India | F91: India | G91: 2 to 3 hours | H91: 0 to 5 years
B92: ID0651 | C92: 8547.80001 | D92: Reporting | E92: India | F92: India | G92: 1 to 2 hours | H92: 0 to 5 years
B93: ID0652 | C93: 7693.020009 | D93: Manager | E93: India | F93: India | G93: 2 to 3 hours | H93: 0 to 5 years
B94: ID0653 | C94: 4000 | D94: Manager | E94: India | F94: India | G94: 8 hours | H94: 5 to 10 years
B95: ID0654 | C95: 5400 | D95: Manager | E95: India | F95: India | G95: 8 hours | H95: 0 to 5 years
B96: ID0655 | C96: 186983.1252 | D96: Manager | E96: India | F96: India | G96: 2 to 3 hours | H96: 5 to 10 years
B97: ID0657 | C97: 21500 | D97: Analyst | E97: India | F97: India | G97: 4 to 6 hours | H97: 5 to 10 years
B98: ID0658 | C98: 15000 | D98: Reporting | E98: India | F98: India | G98: 8 hours | H98: 0 to 5 years
B99: ID0659 | C99: 2122.817743 | D99: Accountant | E99: Pakistan | F99: Pakistan | G99: 2 to 3 hours | H99: 0 to 5 years
B100: ID0660 | C100: 16917.52085 | D100: Manager | E100: India | F100: India | G100: 4 to 6 hours | H100: 0 to 5 years
B101: ID0661 | C101: 2938.306253 | D101: Manager | E101: India | F101: India | G101: 8 hours | H101: 10 to 20 years
B102: ID0662 | C102: 16800 | D102: Analyst | E102: Pakistan | F102: Pakistan | G102: 4 to 6 hours | H102: 10 to 20 years
B103: ID0663 | C103: 37000 | D103: Engineer | E103: India | F103: India | G103: 4 to 6 hours | H103: 5 to 10 years
B104: ID0664 | C104: 5342.375006 | D104: Analyst | E104: India | F104: India | G104: 4 to 6 hours | H104: 0 to 5 years
B105: ID0665 | C105: 3561.583337 | D105: Reporting | E105: India | F105: India | G105: 8 hours | H105: 0 to 5 years
B106: ID0666 | C106: 8547.80001 | D106: Manager | E106: India | F106: India | G106: 2 to 3 hours | H106: 5 to 10 years
B107: ID0667 | C107: 5800 | D107: Manager | E107: India | F107: India | G107: 8 hours | H107: 5 to 10 years
B108: ID0668 | C108: 4095.820838 | D108: Reporting | E108: India | F108: India | G108: 8 hours | H108: 0 to 5 years
B109: ID0669 | C109: 4914.985006 | D109: Manager | E109: Pakistan | F109: Pakistan | G109: 1 to 2 hours | H109: 0 to 5 years
B110: ID0670 | C110: 24000 | D110: Manager | E110: Saudi Arabia | F110: ROW | G110: 4 to 6 hours | H110: 10 to 20 years
B111: ID0671 | C111: 24000 | D111: Accountant | E111: UAE | F111: ROW | G111: 2 to 3 hours | H111: 10 to 20 years
B112: ID0672 | C112: 8738 | D112: Manager | E112: India | F112: India | G112: 8 hours | H112: 5 to 10 years
B113: ID0673 | C113: 15000 | D113: Analyst | E113: Indonesia | F113: Other Asia | G113: 4 to 6 hours | H113: 0 to 5 years
B114: ID0674 | C114: 56400 | D114: Manager | E114: UAE | F114: ROW | G114: 2 to 3 hours | H114: 5 to 10 years
B115: ID0675 | C115: 10200 | D115: Analyst | E115: India | F115: India | G115: 4 to 6 hours | H115: 0 to 5 years
B116: ID0676 | C116: 5787.572923 | D116: Reporting | E116: India | F116: India | G116: 8 hours | H116: 0 to 5 years
B117: ID0677 | C117: 105000 | D117: Consultant | E117: USA | F117: USA | G117: 2 to 3 hours | H117: 10 to 20 years
B118: ID0678 | C118: 4451.979172 | D118: Manager | E118: India | F118: India | G118: 2 to 3 hours | H118: 0 to 5 years
B119: ID0679 | C119: 8369.720843 | D119: Consultant | E119: India | F119: India | G119: 8 hours | H119: 0 to 5 years
B120: ID0680 | C120: 17067.63763 | D120: Manager | E120: Philippines | F120: Other Asia | G120: 4 to 6 hours | H120: 5 to 10 years
B121: ID0681 | C121: 101990.9656 | D121: Manager | E121: Australia | F121: Australia | G121: 1 to 2 hours | H121: 10 to 20 years
B122: ID0682 | C122: 3917.741671 | D122: Analyst | E122: India | F122: India | G122: 2 to 3 hours | H122: 0 to 5 years
B123: ID0683 | C123: 52000 | D123: Specialist | E123: USA | F123: USA | G123: 4 to 6 hours | H123: 10 to 20 years
B124: ID0684 | C124: 4630.058339 | D124: Analyst | E124: India | F124: India | G124: 4 to 6 hours | H124: 0 to 5 years
B125: ID0685 | C125: 2136.950002 | D125: Analyst | E125: India | F125: India | G125: 2 to 3 hours | H125: 0 to 5 years
B126: ID0686 | C126: 13000 | D126: Analyst | E126: India | F126: India | G126: 1 to 2 hours | H126: 0 to 5 years
B127: ID0687 | C127: 2564.340003 | D127: Manager | E127: India | F127: India | G127: 2 to 3 hours | H127: 5 to 10 years
B128: ID0688 | C128: 20479.10419 | D128: Manager | E128: India | F128: India | G128: 2 to 3 hours | H128: 5 to 10 years
B129: ID0689 | C129: 33500 | D129: Accountant | E129: Dubai | F129: ROW | G129: 1 to 2 hours | H129: 5 to 10 years
B130: ID0690 | C130: 50000 | D130: Manager | E130: India | F130: India | G130: 2 to 3 hours | H130: 10 to 20 years
B131: ID0691 | C131: 5342.375006 | D131: Manager | E131: India | F131: India | G131: 2 to 3 hours | H131: 0 to 5 years
B132: ID0692 | C132: 11539.53001 | D132: Analyst | E132: India | F132: India | G132: 8 hours | H132: 0 to 5 years
B133: ID0693 | C133: 7000 | D133: Manager | E133: India | F133: India | G133: 4 to 6 hours | H133: 20 to 30 years
B134: ID0694 | C134: 6767.008341 | D134: Reporting | E134: India | F134: India | G134: 2 to 3 hours | H134: 5 to 10 years
B135: ID0695 | C135: 3000 | D135: Consultant | E135: Cambodia | F135: Other Asia | G135: 2 to 3 hours | H135: 0 to 5 years
B136: ID0696 | C136: 4451.979172 | D136: Reporting | E136: India | F136: India | G136: 8 hours | H136: 0 to 5 years
B137: ID0697 | C137: 2671.187503 | D137: CXO or Top Mgmt. | E137: India | F137: India | G137: 4 to 6 hours | H137: 0 to 5 years
B138: ID0698 | C138: 4957.724006 | D138: Manager | E138: India | F138: India | G138: 4 to 6 hours | H138: 0 to 5 years
B139: ID0699 | C139: 3205.425004 | D139: Accountant | E139: India | F139: India | G139: 2 to 3 hours | H139: 10 to 20 years
B140: ID0700 | C140: 14246.33335 | D140: Manager | E140: India | F140: India | G140: 4 to 6 hours | H140: 5 to 10 years
B141: ID0701 | C141: 5342.375006 | D141: Analyst | E141: India | F141: India | G141: 8 hours | H141: 5 to 10 years
B142: ID0702 | C142: 6588.929174 | D142: Analyst | E142: India | F142: India | G142: 8 hours | H142: 0 to 5 years
B143: ID0703 | C143: 6588.929174 | D143: Analyst | E143: India | F143: India | G143: 8 hours | H143: 0 to 5 years
B144: ID0704 | C144: 35000 | D144: Specialist | E144: USA | F144: USA | G144: 4 to 6 hours | H144: 5 to 10 years
B145: ID0705 | C145: 12821.70001 | D145: Accountant | E145: India | F145: India | G145: 4 to 6 hours | H145: 0 to 5 years
B146: ID0706 | C146: 10684.75001 | D146: Manager | E146: India | F146: India | G146: 1 to 2 hours | H146: 0 to 5 years
B147: ID0707 | C147: 10000 | D147: Manager | E147: India | F147: India | G147: 4 to 6 hours | H147: 0 to 5 years
B148: ID0708 | C148: 2136.950002 | D148: Analyst | E148: India | F148: India | G148: 1 to 2 hours | H148: 0 to 5 years
B149: ID0709 | C149: 8547.80001 | D149: Analyst | E149: India | F149: India | G149: 4 to 6 hours | H149: 0 to 5 years
B150: ID0710 | C150: 8013.562509 | D150: Analyst | E150: India | F150: India | G150: 8 hours | H150: 5 to 10 years
B151: ID0711 | C151: 7123.166675 | D151: Consultant | E151: India | F151: India | G151: 4 to 6 hours | H151: 0 to 5 years
B152: ID0712 | C152: 40958.20838 | D152: Analyst | E152: India | F152: India | G152: 8 hours | H152: 0 to 5 years
B153: ID0713 | C153: 11325.83501 | D153: Manager | E153: India | F153: India | G153: 4 to 6 hours | H153: 0 to 5 years
B154: ID0714 | C154: 15000 | D154: Accountant | E154: Lithuania | F154: ROW | G154: 4 to 6 hours | H154: 0 to 5 years
B155: ID0715 | C155: 12000 | D155: Analyst | E155: UAE | F155: ROW | G155: 4 to 6 hours | H155: 10 to 20 years
B156: ID0716 | C156: 8903.958344 | D156: Reporting | E156: India | F156: India | G156: 2 to 3 hours | H156: 0 to 5 years
B157: ID0717 | C157: 8903.958344 | D157: Engineer | E157: India | F157: India | G157: 8 hours | H157: 0 to 5 years
B158: ID0718 | C158: 12821.70001 | D158: Manager | E158: India | F158: India | G158: 8 hours | H158: 5 to 10 years
B159: ID0719 | C159: 3205.425004 | D159: Manager | E159: India | F159: India | G159: 8 hours | H159: 5 to 10 years
B160: ID0720 | C160: 6677.968758 | D160: Manager | E160: India | F160: India | G160: 2 to 3 hours | H160: 5 to 10 years
B161: ID0721 | C161: 67794.98796 | D161: Manager | E161: New Zealand | F161: ROW | G161: 4 to 6 hours | H161: 10 to 20 years
B162: ID0722 | C162: 31250 | D162: Manager | E162: India | F162: India | G162: 2 to 3 hours | H162: 5 to 10 years
B163: ID0723 | C163: 2165.274098 | D163: Manager | E163: Pakistan | F163: Pakistan | G163: 8 hours | H163: 0 to 5 years
B164: ID0724 | C164: 7123.166675 | D164: Reporting | E164: India | F164: India | G164: 8 hours | H164: 0 to 5 years
B165: ID0725 | C165: 130000 | D165: Manager | E165: Australia | F165: Australia | G165: 4 to 6 hours | H165: 0 to 5 years
B166: ID0726 | C166: 4451.979172 | D166: Manager | E166: India | F166: India | G166: 4 to 6 hours | H166: 5 to 10 years
B167: ID0727 | C167: 9600 | D167: Analyst | E167: South Africa | F167: ROW | G167: 4 to 6 hours | H167: 0 to 5 years
B168: ID0728 | C168: 6945.087508 | D168: Analyst | E168: India | F168: India | G168: 4 to 6 hours | H168: 0 to 5 years
B169: ID0729 | C169: 10684.75001 | D169: Accountant | E169: India | F169: India | G169: 8 hours | H169: 5 to 10 years
B170: ID0730 | C170: 8547.80001 | D170: Analyst | E170: India | F170: India | G170: 2 to 3 hours | H170: 0 to 5 years
B171: ID0731 | C171: 35000 | D171: Analyst | E171: India | F171: India | G171: 4 to 6 hours | H171: 5 to 10 years
B172: ID0732 | C172: 17807.91669 | D172: Analyst | E172: India | F172: India | G172: 2 to 3 hours | H172: 10 to 20 years
B173: ID0733 | C173: 3205.425004 | D173: Accountant | E173: India | F173: India | G173: 8 hours | H173: 0 to 5 years
B174: ID0734 | C174: 60000 | D174: Manager | E174: Russia | F174: ROW | G174: 4 to 6 hours | H174: 5 to 10 years
B175: ID0735 | C175: 14246.33335 | D175: Manager | E175: India | F175: India | G175: 2 to 3 hours | H175: 10 to 20 years
B176: ID0736 | C176: 10684.75001 | D176: Manager | E176: India | F176: India | G176: 2 to 3 hours | H176: 5 to 10 years
B177: ID0737 | C177: 40000 | D177: Manager | E177: India | F177: India | G177: 8 hours | H177: 10 to 20 years
B178: ID0738 | C178: 5022 | D178: Analyst | E178: Pakistan | F178: Pakistan | G178: 4 to 6 hours | H178: 10 to 20 years
B179: ID0739 | C179: 7301.245842 | D179: Analyst | E179: India | F179: India | G179: 8 hours | H179: 0 to 5 years
B180: ID0740 | C180: 19831.43282 | D180: Analyst | E180: Egypt | F180: ROW | G180: 8 hours | H180: 0 to 5 years
B181: ID0741 | C181: 10684.75001 | D181: Manager | E181: India | F181: India | G181: 4 to 6 hours | H181: 0 to 5 years
B182: ID0742 | C182: 4800 | D182: Analyst | E182: Bhutan | F182: Other Asia | G182: 4 to 6 hours | H182: 0 to 5 years
B183: ID0743 | C183: 83846.36297 | D183: Analyst | E183: Germany | F183: Other Europe | G183: 4 to 6 hours | H183: 5 to 10 years
B184: ID0744 | C184: 15000 | D184: Controller | E184: India | F184: India | G184: 2 to 3 hours | H184: 0 to 5 years
B185: ID0745 | C185: 10000 | D185: Analyst | E185: India | F185: India | G185: 4 to 6 hours | H185: 10 to 20 years
B186: ID0746 | C186: 116637.1921 | D186: Manager | E186: UK | F186: UK | G186: 4 to 6 hours | H186: 0 to 5 years
B187: ID0747 | C187: 34357.53397 | D187: Analyst | E187: UK | F187: UK | G187: 8 hours | H187: 0 to 5 years
B188: ID0748 | C188: 102451.5877 | D188: Manager | E188: UK | F188: UK | G188: 4 to 6 hours | H188: 10 to 20 years
B189: ID0749 | C189: 16000 | D189: Engineer | E189: India | F189: India | G189: 2 to 3 hours | H189: 0 to 5 years
B190: ID0750 | C190: 6000 | D190: Manager | E190: India | F190: India | G190: 2 to 3 hours | H190: 5 to 10 years
B191: ID0751 | C191: 6410.850007 | D191: Manager | E191: India | F191: India | G191: 8 hours | H191: 5 to 10 years
B192: ID0752 | C192: 36000 | D192: Engineer | E192: UAE | F192: ROW | G192: 1 to 2 hours | H192: 5 to 10 years
B193: ID0753 | C193: 20000 | D193: Engineer | E193: India | F193: India | G193: 1 to 2 hours | H193: 5 to 10 years
B194: ID0754 | C194: 4273.900005 | D194: Accountant | E194: India | F194: India | G194: 4 to 6 hours | H194: 5 to 10 years
B195: ID0755 | C195: 37828.27853 | D195: Specialist | E195: UK | F195: UK | G195: 8 hours | H195: 5 to 10 years
B196: ID0756 | C196: 11000 | D196: Manager | E196: Sri Lanka | F196: Other Asia | G196: 8 hours | H196: 0 to 5 years
B197: ID0757 | C197: 8000 | D197: Analyst | E197: India | F197: India | G197: 2 to 3 hours | H197: 5 to 10 years
B198: ID0758 | C198: 4006.781255 | D198: Reporting | E198: India | F198: India | G198: 8 hours | H198: 5 to 10 years
B199: ID0759 | C199: 9171.032357 | D199: Manager | E199: Nigeria | F199: ROW | G199: 2 to 3 hours | H199: 0 to 5 years
B200: ID0760 | C200: 4273.900005 | D200: Analyst | E200: India | F200: India | G200: 2 to 3 hours | H200: 10 to 20 years
B201: ID0761 | C201: 12465.54168 | D201: Analyst | E201: India | F201: India | G201: 8 hours | H201: 0 to 5 years
... 1134 more rows

Sheet Country to Region
I3: India | J3: India
I4: USA | J4: USA
I5: UK | J5: UK
I6: Australia | J6: Australia
I7: Pakistan | J7: Pakistan
I8: Canada | J8: Canada
I9: Netherlands | J9: Europe
I10: South Africa | J10: ROW
I11: New Zealand | J11: ROW
I12: UAE | J12: ROW
I13: Germany | J13: Europe
I14: Brazil | J14: ROW
I15: Singapore | J15: Asia
I16: Saudi Arabia | J16: ROW
I17: Philippines | J17: Asia
I18: Spain | J18: Europe
I19: Indonesia | J19: Asia
I20: Portugal | J20: Europe
I21: malaysia | J21: Asia
I22: Denmark | J22: Europe
I23: italy | J23: Europe
I24: Sri Lanka | J24: Asia
I25: Norway | J25: Europe
I26: Mexico | J26: Europe
I27: Europe | J27: Europe
I28: Russia | J28: ROW
I29: Poland | J29: Europe
I30: France | J30: Europe
I31: Dubai | J31: ROW
I32: Nigeria | J32: ROW
I33: Colombia | J33: Asia
I34: Qatar | J34: ROW
I35: Kuwait | J35: ROW
I36: Israel | J36: ROW
I37: Belgium | J37: Europe
I38: Ireland | J38: Europe
I39: china | J39: Asia
I40: Croatia | J40: Europe
I41: Romania | J41: ROW
I42: iran | J42: ROW
I43: Zambia | J43: ROW
I44: Switzerland | J44: Europe
I45: Finland | J45: Europe
I46: Greece | J46: Europe
I47: CEE | J47: ROW
I48: Myanmar | J48: Asia
I49: Hungary | J49: Europe
I50: Japan | J50: ROW
I51: Guyana | J51: ROW
I52: Thailand | J52: Asia
I53: Cambodia | J53: Asia
I54: Lithuania | J54: ROW
I55: Egypt | J55: ROW
I56: Bhutan | J56: Asia
I57: Ukraine | J57: ROW
I58: Uruguay | J58: ROW
I59: Aruba | J59: ROW
I60: Viet Nam | J60: Asia
I61: Kuwait | J61: ROW
I62: Czech Republic | J62: Europe
I63: Zimbabwe | J63: ROW
I64: Slovenia | J64: Europe
I65: Albania | J65: ROW
I66: Asia | J66: Asia
I67: Paraguay | J67: ROW
I68: Montenegro | J68: ROW
I69: Republica Dominicana | J69: ROW
I70: Argentina | J70: ROW
I71: Kenya | J71: ROW
I72: Latin America | J72: ROW
I73: Mongolia | J73: ROW
I74: Uganda | J74: ROW
I75: Ghana | J75: ROW
I76: Austria | J76: Europe
I77: Sweden | J77: Europe
I78: Turkey | J78: Europe
I79: Bolivia | J79: ROW
I80: Vietnam | J80: Asia
I81: MYS | J81: ROW
I82: Libya | J82: ROW
I83: Bulgaria | J83: ROW
I84: Peru | J84: ROW
I85: Morocco | J85: ROW
I86: Lesotho | J86: ROW
I87: Mauritius | J87: ROW
I88: Azerbaijan | J88: ROW
I89: Slovakia | J89: Europe
I90: Tunisia | J90: ROW
I91: Armenia | J91: ROW
I92: Bangladesh | J92: Asia
I93: Hong Kong | J93: Asia
I94: Baltic | J94: ROW
I95: Ethiopia | J95: ROW
I96: Oman | J96: ROW
